fUSD/lending_fUSD_20240116
["ID","MTS","AMOUNT","RATE_DAILY","PERIOD"]
[311759765,1705380644093,-500.0,0.00022155,2]
[311759767,1705380644103,-579.32,0.00022155,2]
[311759769,1705380644112,-500.0,0.00022155,2]
[311759771,1705380644121,-889.63,0.00022155,2]
[311759773,1705380644131,-531.95,0.00022155,2]
[311759775,1705380644141,-780.16,0.00022155,2]
[311759777,1705380644150,-226.73611262,0.00022155,2]
[311759779,1705380644160,-678.44,0.00022155,2]
[311759780,1705380644169,-500.0,0.00022155,2]
[311759781,1705380644180,-1119.83,0.00022155,2]
[311759782,1705380644190,-500.0,0.00022155,2]
[311759783,1705380644200,-500.0,0.00022155,2]
[311759784,1705380644209,-500.0,0.00022155,2]
[311759785,1705380644220,-500.0,0.00022155,2]
[311759786,1705380644230,-500.0,0.00022155,2]
[311759788,1705380644241,-717.93,0.00022155,2]
[311759790,1705380644251,-528.69,0.00022155,2]
[311759792,1705380644261,-2645.49,0.00022155,2]
[311759794,1705380644273,-500.0,0.00022155,2]
[311759796,1705380644283,-500.0,0.00022155,2]
[311759798,1705380644295,-863.64,0.00022155,2]
[311759800,1705380644305,-1235.02,0.00022155,2]
[311759802,1705380644316,-777.79,0.00022155,2]
[311759804,1705380644326,-500.0,0.00022155,2]
[311759806,1705380644336,-500.0,0.00022155,2]
[311759808,1705380644347,-500.0,0.00022155,2]
[311759810,1705380644356,-715.84,0.00022155,2]
[311759812,1705380644367,-763.41,0.00022155,2]
[311759815,1705380644377,-616.9,0.00022155,2]
[311759817,1705380644388,-500.0,0.00022155,2]
[311759819,1705380644398,-500.0,0.00022155,2]
[311759821,1705380644408,-521.85127572,0.00022155,2]
[311759823,1705380644417,-775.16,0.00022155,2]
[311759825,1705380644427,-500.0,0.00022155,2]
[311759827,1705380644436,-799.85,0.00022155,2]
[311759829,1705380644446,-661.57,0.00022155,2]
[311759831,1705380644455,-500.0,0.00022155,2]
[311759833,1705380644464,-989.54,0.00022155,2]
[311759835,1705380644474,-500.0,0.00022155,2]
[311759837,1705380644484,-1115.63,0.00022155,2]
[311759839,1705380644494,-924.54,0.00022155,2]
[311759841,1705380644505,-590.65,0.00022155,2]
[311759843,1705380644514,-500.0,0.00022155,2]
[311759845,1705380644526,-512.47,0.00022155,2]
[311759847,1705380644534,-880.67,0.00022155,2]
[311759849,1705380644544,-1158.48,0.00022155,2]
[311759860,1705380644553,-500.0,0.00022155,2]
[311759862,1705380644648,-500.0,0.00022155,2]
[311759864,1705380644658,-568.53,0.00022155,2]
[311759866,1705380644667,-715.73,0.00022155,2]
[311759868,1705380644676,-634.54,0.00022155,2]
[311759870,1705380644685,-500.0,0.00022155,2]
[311759872,1705380644694,-825.17,0.00022155,2]
[311759874,1705380644704,-500.0,0.00022155,2]
[311759876,1705380644713,-985.57,0.00022155,2]
[311759878,1705380644722,-541.44917452,0.00022155,2]
[311759880,1705380644730,-500.0,0.00022155,2]
[311759882,1705380644740,-708.72,0.00022155,2]
[311759884,1705380644749,-500.0,0.00022155,2]
[311759886,1705380644759,-572.43,0.00022155,2]
[311759888,1705380644769,-3421.96,0.00022155,2]
[311759890,1705380644778,-520.298015,0.00022155,2]
[311759892,1705380644788,-500.0,0.00022155,2]
[311759894,1705380644797,-751.5,0.00022155,2]
[311759896,1705380644810,-500.0,0.00022155,2]
[311759899,1705380644819,-500.0,0.00022155,2]
[311759901,1705380644834,-810.33,0.00022155,2]
[311759903,1705380644843,-628.73,0.00022155,2]
[311759905,1705380644852,-500.0,0.00022155,2]
[311759907,1705380644861,-1021.6,0.00022155,2]
[311759908,1705380644870,-822.65,0.00022155,2]
[311759909,1705380644879,-500.0,0.00022155,2]
[311759910,1705380644888,-1615.85,0.00022155,2]
[311759911,1705380644898,-984.0,0.00022155,2]
[311759912,1705380644907,-518.18,0.00022155,2]
[311759913,1705380644920,-500.0,0.00022155,2]
[311759916,1705380644931,-936.29,0.00022155,2]
[311759918,1705380644940,-655.96,0.00022155,2]
[311759919,1705380644949,-1102.22,0.00022155,2]
[311759921,1705380644959,-1122.26,0.00022155,2]
[311759923,1705380644968,-1033.16,0.00022155,2]
[311759924,1705380644978,-510.77755883,0.00022155,2]
[311759925,1705380644987,-695.72,0.00022155,2]
[311759926,1705380644996,-1914.45,0.00022155,2]
[311759927,1705380645005,-885.66,0.00022155,2]
[311759928,1705380645014,-500.0,0.00022155,2]
[311759929,1705380645027,-598.92,0.00022155,2]
[311759930,1705380645036,-867.6,0.00022155,2]
[311759931,1705380645044,-500.0,0.00022155,2]
[311759932,1705380645054,-673.92,0.00022155,2]
[311759933,1705380645064,-888.01,0.00022155,2]
[311759934,1705380645073,-193.0028499,0.00022155,2]
[311759936,1705380645082,-2466.52,0.00022155,2]
[311759938,1705380645091,-808.68,0.00022155,2]
[311759940,1705380645100,-408.37467258,0.00022155,2]
[311759942,1705380645110,-500.0,0.00022155,2]
[311759944,1705380645119,-680.43,0.00022155,2]
[311759946,1705380645129,-631.13,0.00022155,2]
[311759948,1705380645138,-1336.7,0.00022155,2]
[311759950,1705380645147,-789.82,0.00022155,2]
[311759952,1705380645156,-392.19844474,0.00022155,2]
[311759954,1705380645165,-555.51,0.00022155,2]
[311759956,1705380645174,-500.0,0.00022155,2]
[311759958,1705380645183,-500.0,0.00022155,2]
[311759960,1705380645193,-773.72,0.00022155,2]
[311759962,1705380645202,-500.0,0.00022155,2]
[311759964,1705380645211,-707.02,0.00022155,2]
[311759966,1705380645220,-660.89,0.00022155,2]
[311759968,1705380645229,-723.61,0.00022155,2]
[311759969,1705380645239,-500.0,0.00022155,2]
[311759970,1705380645248,-500.0,0.00022155,2]
[311759972,1705380645257,-585.84,0.00022155,2]
[311759973,1705380645267,-500.0,0.00022155,2]
[311759974,1705380645277,-500.0,0.00022155,2]
[311759975,1705380645286,-500.0,0.00022155,2]
[311759976,1705380645296,-512.7,0.00022155,2]
[311759977,1705380645305,-1520.84,0.00022155,2]
[311759978,1705380645314,-500.0,0.00022155,2]
[311759979,1705380645324,-500.0,0.00022155,2]
[311759980,1705380645333,-500.0,0.00022155,2]
[311759981,1705380645342,-563.88,0.00022155,2]
[311759982,1705380645352,-732.4,0.00022155,2]
[311759983,1705380645361,-500.0,0.00022155,2]
[311759984,1705380645370,-670.96,0.00022155,2]
[311759985,1705380645379,-984.89,0.00022155,2]
[311759986,1705380645389,-500.0,0.00022155,2]
[311759987,1705380645398,-500.0,0.00022155,2]
[311759988,1705380645408,-872.2,0.00022155,2]
[311759989,1705380645418,-500.0,0.00022155,2]
[311759990,1705380645427,-500.0,0.00022155,2]
[311759991,1705380645437,-1569.9,0.00022155,2]
[311759992,1705380645446,-500.0,0.00022155,2]
[311759993,1705380645456,-500.0,0.00022155,2]
[311759994,1705380645465,-16405.36,0.00022155,2]
[311759995,1705380645474,-748.19,0.00022155,2]
[311759996,1705380645484,-628.83010779,0.00022155,2]
[311759997,1705380645494,-1113.97,0.00022155,2]
[311759998,1705380645503,-1000.0,0.00022155,2]
[311759999,1705380645512,-504.2,0.00022155,2]
[311760000,1705380645524,-500.0,0.00022155,2]
[311760001,1705380645533,-500.0,0.00022155,2]
[311760002,1705380645542,-500.0,0.00022155,2]
[311760003,1705380645551,-500.0,0.00022155,2]
[311760004,1705380645561,-712.93,0.00022155,2]
[311760005,1705380645571,-653.77,0.00022155,2]
[311760006,1705380645580,-500.0,0.00022155,2]
[311760007,1705380645589,-557.39,0.00022155,2]
[311760008,1705380645599,-500.0,0.00022155,2]
[311760009,1705380645609,-500.0,0.00022155,2]
[311760010,1705380645618,-847.27,0.00022155,2]
[311760011,1705380645627,-500.0,0.00022155,2]
[311760012,1705380645637,-628.39,0.00022155,2]
[311760013,1705380645647,-1223.05,0.00022155,2]
[311760014,1705380645657,-708.12,0.00022155,2]
[311760015,1705380645667,-500.0,0.00022155,2]
[311760016,1705380645676,-500.0,0.00022155,2]
[311760019,1705380645685,-500.0,0.00022155,2]
[311760021,1705380645695,-1040.79,0.00022155,2]
[311760023,1705380645704,-948.97,0.00022155,2]
[311760025,1705380645713,-500.0,0.00022155,2]
[311760027,1705380645722,-500.0,0.00022155,2]
[311760029,1705380645731,-500.0,0.00022155,2]
[311760031,1705380645740,-500.0,0.00022155,2]
[311760033,1705380645749,-500.0,0.00022155,2]
[311760035,1705380645758,-925.84,0.00022155,2]
[311760037,1705380645768,-1120.01,0.00022155,2]
[311760038,1705380645778,-546.18,0.00022155,2]
[311760039,1705380645787,-500.0,0.00022155,2]
[311760040,1705380645797,-500.0,0.00022155,2]
[311760041,1705380645806,-500.0,0.00022155,2]
[311760042,1705380645815,-500.0,0.00022155,2]
[311760043,1705380645825,-1804.33,0.00022155,2]
[311760044,1705380645834,-630.59,0.00022155,2]
[311760045,1705380645843,-598.24,0.00022155,2]
[311760046,1705380645852,-500.0,0.00022155,2]
[311760047,1705380645861,-912.36,0.00022155,2]
[311760048,1705380645871,-500.0,0.00022155,2]
[311760049,1705380645880,-1089.56,0.00022155,2]
[311760050,1705380645890,-500.0,0.00022155,2]
[311760051,1705380645900,-500.0,0.00022155,2]
[311760052,1705380645909,-540.25,0.00022155,2]
[311760053,1705380645922,-500.0,0.00022155,2]
[311760054,1705380645931,-2634.95,0.00022155,2]
[311760055,1705380645940,-500.0,0.00022155,2]
[311760056,1705380645949,-500.0,0.00022155,2]
[311760057,1705380645958,-500.0,0.00022155,2]
[311760058,1705380645968,-500.0,0.00022155,2]
[311760059,1705380645977,-500.0,0.00022155,2]
[311760060,1705380645986,-519.38,0.00022155,2]
[311760061,1705380645995,-2818.24,0.00022155,2]
[311760062,1705380646005,-500.0,0.00022155,2]
[311760063,1705380646014,-500.0,0.00022155,2]
[311760064,1705380646024,-500.0,0.00022155,2]
[311760065,1705380646034,-590.46,0.00022155,2]
[311760066,1705380646043,-502.33,0.00022155,2]
[311760067,1705380646052,-684.34,0.00022155,2]
[311760068,1705380646061,-16098.4,0.00022155,2]
[311760069,1705380646071,-1130.6,0.00022155,2]
[311760070,1705380646080,-9999.99,0.00022155,2]
[311760071,1705380646089,-500.0,0.00022155,2]
[311760072,1705380646099,-500.0,0.00022155,2]
[311760073,1705380646108,-547.68,0.00022155,2]
[311760074,1705380646117,-500.0,0.00022155,2]
[311760075,1705380646126,-500.0,0.00022155,2]
[311760076,1705380646137,-500.0,0.00022155,2]
[311760077,1705380646147,-826.35,0.00022155,2]
[311760078,1705380646157,-504.47,0.00022155,2]
[311760079,1705380646170,-500.0,0.00022155,2]
[311760080,1705380646185,-583.94,0.00022155,2]
[311760081,1705380646194,-652.76,0.00022155,2]
[311760083,1705380646203,-500.0,0.00022155,2]
[311760085,1705380646212,-500.0,0.00022155,2]
[311760087,1705380646221,-676.44,0.00022155,2]
[311760089,1705380646230,-689.05,0.00022155,2]
[311760091,1705380646239,-1776.02,0.00022155,2]
[311760092,1705380646248,-500.0,0.00022155,2]
[311760094,1705380646258,-500.0,0.00022155,2]
[311760096,1705380646267,-707.43,0.00022155,2]
[311760098,1705380646277,-500.0,0.00022155,2]
[311760099,1705380646287,-890.56,0.00022155,2]
[311760100,1705380646296,-718.31,0.00022155,2]
[311760101,1705380646306,-611.01,0.00022155,2]
[311760102,1705380646316,-630.71,0.00022155,2]
[311760103,1705380646325,-1210.79,0.00022155,2]
[311760104,1705380646334,-619.21,0.00022155,2]
[311760105,1705380646347,-500.0,0.00022155,2]
[311760106,1705380646360,-500.0,0.00022155,2]
[311760107,1705380646369,-500.0,0.00022155,2]
[311760108,1705380646379,-500.0,0.00022155,2]
[311760109,1705380646388,-500.0,0.00022155,2]
[311760110,1705380646398,-797.45,0.00022156,2]
[311760111,1705380646408,-300.0,0.00022156,2]
[311760112,1705380646417,-500.0,0.00022156,2]
[311760113,1705380646427,-500.0,0.00022156,2]
[311760114,1705380646436,-500.0,0.00022156,2]
[311760115,1705380646446,-500.0,0.00022156,2]
[311760116,1705380646456,-506.34485994,0.00022156,2]
[311760117,1705380646465,-1000.0,0.00022156,2]
[311760118,1705380646475,-605.21,0.00022156,2]
[311760119,1705380646484,-500.0,0.00022156,2]
[311760120,1705380646494,-500.0,0.00022156,2]
[311760121,1705380646504,-522.87,0.00022156,2]
[311760122,1705380646513,-511.02,0.00022156,2]
[311760123,1705380646523,-705.11,0.00022156,2]
[311760124,1705380646533,-500.0,0.00022156,2]
[311760125,1705380646543,-500.0,0.00022156,2]
[311760126,1705380646552,-593.55,0.00022156,2]
[311760127,1705380646562,-441.38660758,0.00022156,2]
[311760128,1705380646571,-500.0,0.00022156,2]
[311760129,1705380646580,-500.0,0.00022156,2]
[311760130,1705380646589,-500.0,0.00022156,2]
[311760131,1705380646598,-500.0,0.00022156,2]
[311760132,1705380646608,-500.0,0.00022156,2]
[311760133,1705380646617,-500.0,0.00022156,2]
[311760134,1705380646626,-500.0,0.00022156,2]
[311760135,1705380646635,-557.19,0.00022156,2]
[311760136,1705380646645,-500.0,0.00022156,2]
[311760137,1705380646653,-500.0,0.00022156,2]
[311760138,1705380646663,-500.0,0.00022156,2]
[311760139,1705380646672,-500.0,0.00022156,2]
[311760140,1705380646681,-500.0,0.00022156,2]
[311760141,1705380646691,-477.52289987,0.00022156,2]
[311760142,1705380646701,-500.0,0.00022156,2]
[311760143,1705380646710,-500.0,0.00022156,2]
[311760144,1705380646719,-537.66,0.00022156,2]
[311760145,1705380646728,-588.3,0.00022156,2]
[311760146,1705380646738,-500.0,0.00022156,2]
[311760147,1705380646747,-500.0,0.00022156,2]
[311760148,1705380646757,-554.96,0.00022156,2]
[311760149,1705380646766,-500.0,0.00022156,2]
[311760150,1705380646776,-500.0,0.00022156,2]
[311760151,1705380646786,-500.0,0.00022156,2]
[311760152,1705380646795,-500.0,0.00022156,2]
[311760153,1705380646804,-500.0,0.00022156,2]
[311760154,1705380646814,-500.0,0.00022156,2]
[311760155,1705380646823,-181.50208039,0.00022156,2]
[311760156,1705380646832,-500.0,0.00022156,2]
[311760157,1705380646841,-500.0,0.00022156,2]
[311760158,1705380646851,-502.25,0.00022156,2]
[311760159,1705380646861,-500.0,0.00022156,2]
[311760160,1705380646870,-500.0,0.00022156,2]
[311760161,1705380646879,-500.0,0.00022156,2]
[311760162,1705380646889,-513.4073369,0.00022156,2]
[311760163,1705380646899,-467.7600158,0.00022156,2]
[311760164,1705380646908,-500.0,0.00022156,2]
[311760165,1705380646921,-500.0,0.00022156,2]
[311760166,1705380646930,-500.0,0.00022156,2]
[311760167,1705380646940,-500.0,0.00022156,2]
[311760168,1705380646949,-317.300621,0.00022156,2]
[311760169,1705380646958,-500.0,0.00022156,2]
[311760170,1705380646968,-500.0,0.00022156,2]
[311760171,1705380646977,-500.0,0.00022156,2]
[311760172,1705380646987,-500.0,0.00022156,2]
[311760173,1705380646997,-500.0,0.00022156,2]
[311760174,1705380647007,-500.0,0.00022156,2]
[311760175,1705380647017,-500.0,0.00022156,2]
[311760176,1705380647026,-663.65,0.00022156,2]
[311760177,1705380647034,-500.0,0.00022156,2]
[311760178,1705380647043,-314.37,0.00022156,2]
[311760179,1705380647053,-500.0,0.00022156,2]
[311760180,1705380647062,-500.0,0.00022156,2]
[311760181,1705380647071,-500.0,0.00022156,2]
[311760182,1705380647081,-500.0,0.00022156,2]
[311760183,1705380647090,-500.0,0.00022156,2]
[311760184,1705380647100,-416.48303241,0.00022156,2]
[311760185,1705380647110,-500.0,0.00022156,2]
[311760186,1705380647119,-500.0,0.00022156,2]
[311760187,1705380647129,-500.0,0.00022156,2]
[311760188,1705380647140,-500.0,0.00022156,2]
[311760189,1705380647150,-500.0,0.00022156,2]
[311760190,1705380647160,-500.0,0.00022156,2]
[311760191,1705380647169,-500.0,0.00022156,2]
[311760192,1705380647179,-500.0,0.00022156,2]
[311760193,1705380647189,-608.06,0.00022156,2]
[311760194,1705380647199,-500.0,0.00022156,2]
[311760195,1705380647208,-500.0,0.00022156,2]
[311760196,1705380647217,-527.67,0.00022156,2]
[311760197,1705380647227,-500.0,0.00022156,2]
[311760198,1705380647236,-578.50817615,0.00022156,2]
[311760199,1705380647245,-500.0,0.00022156,2]
[311760200,1705380647255,-500.0,0.00022156,2]
[311760201,1705380647264,-500.0,0.00022156,2]
[311760202,1705380647275,-500.0,0.00022156,2]
[311760203,1705380647284,-500.0,0.00022156,2]
[311760204,1705380647294,-500.0,0.00022156,2]
[311760205,1705380647303,-500.0,0.00022156,2]
[311760206,1705380647313,-566.34,0.00022156,2]
[311760207,1705380647322,-500.0,0.00022156,2]
[311760208,1705380647333,-500.0,0.00022156,2]
[311760209,1705380647343,-557.0,0.00022156,2]
[311760210,1705380647352,-1053.67,0.00022156,2]
[311760211,1705380647362,-530.88,0.00022156,2]
[311760212,1705380647371,-574.77,0.00022156,2]
[311760213,1705380647381,-500.0,0.00022156,2]
[311760214,1705380647391,-500.0,0.00022156,2]
[311760215,1705380647400,-500.0,0.00022156,2]
[311760216,1705380647410,-500.0,0.00022156,2]
[311760217,1705380647420,-969.74,0.00022156,2]
[311760218,1705380647429,-500.0,0.00022156,2]
[311760219,1705380647438,-500.0,0.00022156,2]
[311760220,1705380647449,-1146.99,0.00022156,2]
[311760221,1705380647458,-500.0,0.00022156,2]
[311760222,1705380647468,-500.0,0.00022156,2]
[311760223,1705380647477,-565.58,0.00022156,2]
[311760224,1705380647487,-500.0,0.00022156,2]
[311760225,1705380647496,-500.0,0.00022156,2]
[311760226,1705380647506,-500.0,0.00022156,2]
[311760227,1705380647515,-500.0,0.00022156,2]
[311760228,1705380647526,-500.0,0.00022156,2]
[311760229,1705380647535,-627.63,0.00022156,2]
[311760230,1705380647545,-500.0,0.00022156,2]
[311760231,1705380647554,-500.0,0.00022156,2]
[311760232,1705380647563,-500.0,0.00022156,2]
[311760233,1705380647573,-500.0,0.00022156,2]
[311760234,1705380647582,-663.71,0.00022156,2]
[311760235,1705380647592,-527.27947754,0.00022156,2]
[311760236,1705380647601,-500.0,0.00022156,2]
[311760237,1705380647610,-500.0,0.00022156,2]
[311760238,1705380647619,-500.0,0.00022156,2]
[311760239,1705380647628,-500.0,0.00022156,2]
[311760240,1705380647637,-815.26,0.00022156,2]
[311760241,1705380647647,-500.0,0.00022156,2]
[311760242,1705380647657,-681.39,0.00022156,2]
[311760243,1705380647668,-1042.42,0.00022156,2]
[311760244,1705380647677,-500.0,0.00022156,2]
[311760245,1705380647686,-775.55,0.00022156,2]
[311760246,1705380647695,-668.51,0.00022156,2]
[311760247,1705380647704,-1620.83,0.00022156,2]
[311760248,1705380647714,-1188.13,0.00022156,2]
[311760249,1705380647723,-1011.94,0.00022156,2]
[311760250,1705380647732,-2887.94,0.00022156,2]
[311760251,1705380647742,-2800.22,0.00022156,2]
[311760252,1705380647751,-499.99,0.00022156,2]
[311760253,1705380647760,-150.99,0.00022156,2]
[311760254,1705380647770,-337.89,0.00022156,2]
[311760255,1705380647780,-712.78,0.00022159,2]
[311760256,1705380647789,-207.0,0.00022165,2]
[311760257,1705380647799,-477.79300423,0.00022175,2]
[311760258,1705380647808,-161.9,0.00022243,2]
[311760259,1705380647817,-2863.65,0.00022243,2]
[311760260,1705380647827,-1161.84,0.00022243,2]
[311760261,1705380647836,-477.79300423,0.00022296,2]
[311760262,1705380647846,-630.71,0.00022298,2]
[311760263,1705380647855,-16058.6148184,0.00022299,2]
[311760264,1705380647864,-545.59,0.00022299,2]
[311760265,1705380647873,-392.75,0.00022299,2]
[311760266,1705380647882,-172.71378818,0.000223,2]
[311760267,1705380647892,-14864.24021138,0.000223,2]
[311760268,1705380647903,-1560.0,0.000223,2]
[311760269,1705380647913,-1462.16272741,0.000223,2]
[311760270,1705380647924,-370.30194109,0.000223,2]
[311760271,1705380647933,-156.73748504,0.000223,2]
[311760272,1705380647942,-342.42,0.00022313,2]
[311760273,1705380647952,-152.12,0.00022315,2]
[311760274,1705380647961,-167.57674096,0.00022328,5]
[311760275,1705380647970,-14864.24021128,0.00022355,2]
[311760276,1705380647979,-630.71,0.00022398,2]
[311760277,1705380647989,-630.71,0.00022398,2]
[311760278,1705380647998,-630.71,0.00022398,2]
[311760279,1705380648008,-630.71,0.00022398,2]
[311760280,1705380648018,-630.71,0.00022399,2]
[311760281,1705380648028,-630.71,0.00022399,2]
[311760282,1705380648038,-1290981.27521384,0.00022399,2]
[311760283,1705380648047,-157.441636,0.000224,7]
[311760284,1705380648056,-151.0,0.000224,7]
[311760285,1705380648065,-151.0,0.000224,7]
[311760286,1705380648073,-151.0,0.000224,7]
[311760287,1705380648082,-151.0,0.000224,7]
[311760288,1705380648091,-152.199543,0.000224,7]
[311760289,1705380648100,-151.0,0.000224,7]
[311760290,1705380648110,-257.733119,0.000224,7]
[311760291,1705380648119,-151.0,0.000224,7]
[311760292,1705380648128,-151.0,0.000224,7]
[311760293,1705380648138,-151.0,0.000224,7]
[311760294,1705380648147,-175.484443,0.000224,7]
[311760295,1705380648157,-151.0,0.000224,7]
[311760296,1705380648166,-505534.28686793,0.000224,2]
[311760297,1705380648175,-151.0,0.000224,7]
[311760298,1705380648185,-207.617336,0.000224,2]
[311760299,1705380648194,-207.617336,0.000224,2]
[311760300,1705380648203,-151.0,0.000224,7]
[311760301,1705380648213,-151.0,0.000224,7]
[311760302,1705380648223,-151.0,0.000224,7]
[311760303,1705380648232,-151.0,0.000224,7]
[311760304,1705380648242,-151.0,0.000224,7]
[311760305,1705380648251,-836.48,0.000224,2]
[311760306,1705380648261,-417.52,0.000224,2]
[311760307,1705380648271,-408.4,0.000224,2]
[311760308,1705380648280,-150.0,0.000224,2]
[311760309,1705380648289,-294.22,0.000224,2]
[311760310,1705380648299,-150.0,0.000224,2]
[311760311,1705380648308,-150.0,0.000224,2]
[311760312,1705380648318,-314.46,0.000224,2]
[311760313,1705380648328,-162.917528,0.000224,7]
[311760314,1705380648337,-151.0,0.000224,7]
[311760315,1705380648347,-408.4,0.000224,2]
[311760316,1705380648356,-294.22,0.000224,2]
[311760317,1705380648365,-150.0,0.000224,2]
[311760318,1705380648375,-314.46,0.000224,2]
[311760319,1705380648384,-408.4,0.000224,2]
[311760320,1705380648393,-314.46,0.000224,2]
[311760321,1705380648402,-294.22,0.000224,2]
[311760322,1705380648412,-150.0,0.000224,2]
[311760323,1705380648421,-150.0,0.000224,2]
[311760324,1705380648431,-248.185133,0.000224,7]
[311760325,1705380648440,-151.0,0.000224,7]
[311760326,1705380648448,-151.0,0.000224,7]
[311760327,1705380648458,-150.0,0.000224,2]
[311760328,1705380648467,-294.22,0.000224,2]
[311760329,1705380648477,-314.46,0.000224,2]
[311760330,1705380648486,-408.4,0.000224,2]
[311760331,1705380648495,-207.330132,0.000224,7]
[311760332,1705380648504,-408.4,0.000224,2]
[311760333,1705380648513,-150.0,0.000224,2]
[311760334,1705380648524,-150.0,0.000224,2]
[311760335,1705380648533,-294.22,0.000224,2]
[311760336,1705380648542,-314.46,0.000224,2]
[311760337,1705380648551,-151.0,0.000224,7]
[311760338,1705380648560,-407.44,0.000224,2]
[311760339,1705380648569,-150.0,0.000224,2]
[311760340,1705380648578,-313.74,0.000224,2]
[311760341,1705380648587,-293.56,0.000224,2]
[311760342,1705380648597,-294.22,0.000224,2]
[311760343,1705380648606,-940.88,0.000224,2]
[311760344,1705380648615,-418.24,0.000224,2]
[311760345,1705380648625,-889.61,0.000224,2]
[311760346,1705380648634,-314.46,0.000224,2]
[311760347,1705380648643,-151.0,0.000224,7]
[311760348,1705380648653,-418.24,0.000224,2]
[311760349,1705380648662,-294.22,0.000224,2]
[311760350,1705380648792,-940.88,0.000224,2]
[311760351,1705380648802,-314.46,0.000224,2]
[311760352,1705380648811,-418.24,0.000224,2]
[311760353,1705380648821,-940.88,0.000224,2]
[311760354,1705380648831,-226.97,0.000224,2]
[311760355,1705380648839,-294.22,0.000224,2]
[311760356,1705380648849,-14864.24021128,0.00022409,2]
[311760357,1705380648858,-477.79300423,0.00022417,2]
[311760358,1705380648867,-500.0,0.00022427,2]
[311760359,1705380648877,-500.0,0.00022427,2]
[311760360,1705380648886,-500.0,0.00022427,2]
[311760361,1705380648896,-500.0,0.00022427,2]
[311760362,1705380648906,-500.0,0.00022427,2]
[311760363,1705380648919,-500.0,0.00022427,2]
[311760364,1705380648928,-500.0,0.00022427,2]
[311760365,1705380648938,-500.0,0.00022427,2]
[311760366,1705380648947,-500.0,0.00022427,2]
[311760367,1705380648957,-570.71,0.00022427,2]
[311760368,1705380648966,-500.0,0.00022427,2]
[311760369,1705380648976,-500.0,0.00022427,2]
[311760370,1705380648985,-500.0,0.00022427,2]
[311760371,1705380648994,-500.0,0.00022427,2]
[311760372,1705380649004,-500.0,0.00022427,2]
[311760373,1705380649013,-500.0,0.00022427,2]
[311760374,1705380649023,-500.0,0.00022427,2]
[311760375,1705380649033,-500.0,0.00022427,2]
[311760376,1705380649043,-500.0,0.00022427,2]
[311760377,1705380649053,-500.0,0.00022427,2]
[311760378,1705380649063,-920.3,0.00022427,2]
[311760379,1705380649072,-500.0,0.00022427,2]